Cogmind - Beta 13 @@@ ROGUE MODE // 2024.05.14 @ 23:34:44 Player: na-3J Result: Destroyed by D-53 Grenadier with Mini Grenade Launcher Performance ------------- Evolutions (0) 0 Regions Visited (2) 400 Robots Destroyed (10) 50 Value Destroyed (250) 250 Prototype IDs (0) 0 Alien Tech Used (0) 0 Bonus (0) 0 TOTAL SCORE: 700 Bonus ------- None Cogmind --------- Core Integrity 0/250 Matter 209/300 Energy 100/100 System Corruption 6% Temperature Cool (0) Movement Core (50) Location -10/Mines Parts ------- > --- POWER (1) -------- (None) > --- PROPULSION (2) --- (None) > --- UTILITY (2) ------ Signal Interpreter > --- WEAPON (2) ------- (None) > --- INVENTORY (5) ---- Hover Unit High-capacity Battery (250) Medium Matter Pod (0) Light Assault Rifle Peak State ------------ > --- POWER ------------ Ion Engine > --- PROPULSION ------- Light Treads Light Treads > --- UTILITY ---------- Small Storage Unit Small Storage Unit > --- WEAPON ----------- Particle Gun Assault Rifle > --- INVENTORY -------- Ion Engine High-capacity Battery Small Matter Pod Medium Matter Pod Signal Interpreter Medium Laser Grenade Launcher [Rating: 8] Favorites ----------- Power Ion Engine Engine Ion Engine Propulsion Light Treads Treads Light Treads Leg Aluminum Leg Flight Unit Flight Unit Utility Small Storage Unit Storage Small Storage Unit Processor Signal Interpreter Protection Light Armor Plating Weapon Medium Laser Energy Gun Medium Laser Ballistic Gun Light Assault Rifle Launcher Grenade Launcher Build | -11 -10 -10 ------- Run | Yrd Mat Min Slots Evolved . | . . . Power . | . . . Propulsion . | . . . Utility . | . . . Weapon . | . . . Parts Attached 30 | 7 10 13 Power 3 | 1 . 2 Engine 3 | 1 . 2 Core . | . . . Reactor . | . . . Propulsion 8 | 2 4 2 Treads 5 | 2 3 . Leg 1 | . 1 . Wheel . | . . . Hover . | . . . Flight 2 | . . 2 Utility 5 | 1 1 3 Device . | . . . Storage 3 | 1 1 1 Processor 1 | . . 1 Hackware . | . . . Protection 1 | . . 1 Artifact . | . . . Weapon 14 | 3 5 6 Energy Gun 5 | 2 3 . Energy Cannon . | . . . Ballistic Gun 6 | 1 1 4 Ballistic Cannon . | . . . Launcher 3 | . 1 2 Special Weapon . | . . . Impact Weapon . | . . . Slashing Weapon . | . . . Piercing Weapon . | . . . Special Melee Weapon . | . . . Unidentified Prototypes . | . . . Parts Lost 10 | . 4 6 Power 1 | . . 1 Propulsion 4 | . 2 2 Utility 1 | . . 1 Weapon 4 | . 2 2 Highest Loss Streak 6 | . 3 6 To Critical Strikes . | . . . Average Slot Usage (%) 82 | . 86 74 Engine 13 | . 14 13 Treads 13 | . 19 . Leg 2 | . 3 1 Flight 7 | . . 22 Storage 18 | . 24 5 Processor 1 | . . 4 Energy Gun 10 | . 15 . Ballistic Gun 12 | . 7 23 Naked Turns . | . . . Heaviest Build 20 | 14 20 17 Greatest Support 40 | 40 40 8 Greatest Overweight (x) 5 | 2 5 5 Average Overweight (x) . | . . . Largest Inventory Capacity 8 | 8 8 8 Average Capacity 7 | 6 8 5 Most Carried 8 | 3 8 8 Average Carried 4 | 1 4 4 Final Capacity 8 | 8 8 5 Final Carried 7 | 2 7 4 Class Distribution -------------------- 74% | Mutant 25% | Scavenger-Mutant Dominant Class ---------------- Mutant | -10/Materials Scavenger-Mutant | -10/Mines Resources | -11 -10 -10 ----------- Run | Yrd Mat Min Matter Collected 439 | 170 202 67 Remotely . | . . . Salvage Created 477 | . 406 71 Parts 21 | . 14 7 Haulers Intercepted . | . . . Recyclers Shooed 2 | . 2 . Parts Field Recycled . | . . . Retrieved Matter . | . . . Parts Self-Destructed . | . . . Prevented . | . . . Kills | -11 -10 -10 ------- Run | Yrd Mat Min Combat Hostiles Destroyed 11 | . 4 7 Guns 7 | . 3 4 AOE 4 | . 1 3 Classes Destroyed 5 | . 3 2 Recycler 2 | . 2 . Watcher 1 | . 1 . Swarmer 3 | . . 3 Grunt 4 | . 4 . Assembled 4 | . . 4 Best Kill Streak 4 | . 3 4 Combat Bots Only 4 | . 2 4 Max Kills in Single Turn 3 | . 1 3 Gunslinging . | . . . Exploded 3 | . 1 3 Melee . | . . . Uniques/NPCs Destroyed . | . . . Combat | -11 -10 -10 -------- Run | Yrd Mat Min Hostile Shots Fired 90 | . 54 36 Missed 26 | . 19 7 Damage Taken 1130 | . 593 537 Core 258 | . 69 189 Absorbed by Shields . | . . . Core Remaining (%) 100 | 100 . . Volleys Fired 28 | . 15 13 Largest 2 | . 2 2 Hottest 100 | . 100 40 Shots Fired 44 | . 29 15 Gun 42 | . 28 14 Cannon . | . . . Launcher 2 | . 1 1 Special . | . . . Kinetic 24 | . 10 14 Thermal 18 | . 18 . Explosive 2 | . 1 1 Electromagnetic . | . . . Robot Hit Streak 9 | . 9 8 Robot Miss Streak 3 | . 2 3 Penetration Max . | . . . Secondary Targets 1 | . 1 . Max Gunslinging Chain 1 | . 1 . Shots Hit Robots 29 | . 22 7 Core Hits 27 | . 16 11 Critical Kills . | . . . Critical Parts Destroyed 1 | . 1 . Critical Strikes 2 | . 2 . Burn 1 | . 1 . Destroy 1 | . 1 . Melee Attacks . | . . . Impact . | . . . Slashing . | . . . Piercing . | . . . Sneak Attacks . | . . . Combat Hostiles . | . . . Follow-up Attacks . | . . . Damage Inflicted 651 | . 350 301 Guns 375 | . 277 98 Cannons . | . . . Explosions 276 | . 73 203 Melee . | . . . Ramming . | . . . Kinetic 188 | . 90 98 Thermal 221 | . 221 . Explosive 242 | . 39 203 Electromagnetic . | . . . Impact . | . . . Slashing . | . . . Piercing . | . . . Highest Corruption 6 | . . 6 Average Corruption 6 | . . 6 Corruption Purged . | . . . Corruption Blocked . | . . . Overload Shots . | . . . Overflow Damage 64 | . 64 . Projectiles . | . . . Explosions 64 | . 64 . Melee . | . . . Knockbacks . | . . . Impact . | . . . Kinetic . | . . . Secondary . | . . . Self-Inflicted Damage 204 | . 164 40 Shots 3 | . 2 1 Rammed . | . . . Targets Rammed . | . . . Kicked . | . . . Crushed . | . . . Highest Temperature 183 | . 183 21 Average Temperature 44 | . 48 9 Received Heat Transfer 293 | . 273 20 Siege Activations . | . . . Robots Corrupted . | . . . Combat Hostiles . | . . . Parts Fried . | . . . Impact Corruptions . | . . . Robots Melted . | . . . Combat Hostiles . | . . . Parts Melted 3 | . 3 . Heat Transferred 679 | . 679 . Parts Sabotaged . | . . . Parts Stolen . | . . . Parts Stripped . | . . . Power Chain Reactions . | . . . Alert | -11 -10 -10 ------- Run | Yrd Mat Min Peak Influence 233 | . 233 78 Initial 8 | . . 8 Average 64 | . 75 73 Maximum Alert Level 1 | . 1 . Low Security (%) 93 | 100 89 100 Level 1 6 | . 10 . Level 2 . | . . . Level 3 . | . . . Level 4 . | . . . Level 5 . | . . . High Security . | . . . Max Security . | . . . Squads Dispatched 1 | . 1 . Investigation . | . . . Extermination . | . . . Reinforcement 1 | . 1 . Assault . | . . . Garrison . | . . . Intercept . | . . . Searches Triggered . | . . . Construction Impeded . | . . . Haulers Reinforced . | . . . Active Scanning Responses . | . . . Cargo Convoy Interrupts . | . . . Stealth | -11 -10 -10 --------- Run | Yrd Mat Min Distress Signals 1 | . 1 . Communications Jammed . | . . . Distress Signals . | . . . Times Spotted 27 | . 10 17 Peak Tracking Total 12 | . 3 12 Tactical Retreats 1 | . 1 . Traps | -11 -10 -10 ------- Run | Yrd Mat Min Traps Triggered 2 | . 2 . Indirectly . | . . . Trap Hack Attempts . | . . . Triggered . | . . . Disarmed . | . . . Reprogrammed . | . . . Reused . | . . . Traps Extracted . | . . . Installed . | . . . Triggered . | . . . Machines | -11 -10 -10 ---------- Run | Yrd Mat Min Machines Disabled 3 | . 3 . Max in Single Turn 3 | . 3 . Machines Repaired . | . . . Machines Dismantled . | . . . Machines Sabotaged . | . . . Overloaded Fab Kills . | . . . Hacking | -11 -10 -10 --------- Run | Yrd Mat Min Machines Accessed . | . . . Terminals . | . . . Fabricators . | . . . Repair Stations . | . . . Recycling Units . | . . . Scanalyzers . | . . . Garrison Access . | . . . Total Hacks . | . . . Successful . | . . . Failed . | . . . Catastrophic . | . . . Database Lockouts . | . . . Manual . | . . . Terminals . | . . . Fabricators . | . . . Repair Stations . | . . . Recycling Units . | . . . Scanalyzers . | . . . Garrison Access . | . . . Terminal Hacks . | . . . Fabricator Hacks . | . . . Repair Station Hacks . | . . . Recycling Unit Hacks . | . . . Scanalyzer . | . . . Garrison Access Hacks . | . . . Unauthorized Hacks . | . . . Terminals . | . . . Fabricators . | . . . Repair Stations . | . . . Recycling Units . | . . . Scanalyzers . | . . . Garrison Access . | . . . Data Cores Recovered . | . . . Used . | . . . Hacking Detections . | . . . Full Trace Events . | . . . Feedback Events . | . . . Feedback Blocked . | . . . Robot Schematics Acquired . | . . . Robots Built . | . . . Authchips . | . . . Time . | . . . Total Robot Build Rating . | . . . Part Schematics Acquired . | . . . Parts Built . | . . . Authchips . | . . . Time . | . . . Total Part Build Rating . | . . . Parts Repaired . | . . . Time . | . . . Parts Recycled . | . . . Recycled Matter . | . . . Retrieved Matter . | . . . Retrieved Components . | . . . Parts Scanalyzed . | . . . Part Schematics Acquired . | . . . Parts Damaged . | . . . Bothacking | -11 -10 -10 ------------ Run | Yrd Mat Min Used RIF Installer . | . . . Robots Hacked . | . . . Non-combat . | . . . Combat . | . . . Robot Hacks Applied . | . . . Relay Couplers Released . | . . . Fabnet Peak Effective % . | . . . Robots Rewired . | . . . Allies Hacked . | . . . Hacks Repelled . | . . . Allies | -11 -10 -10 -------- Run | Yrd Mat Min Total Allies . | . . . Largest Group . | . . . Highest-Rated Group . | . . . Highest-Rated Ally . | . . . Total Orders . | . . . Ally Attacks . | . . . Total Damage . | . . . Kills . | . . . Allies Corrupted . | . . . Allies Melted . | . . . Intel | -11 -10 -10 ------- Run | Yrd Mat Min Robot Analysis Total . | . . . Derelict Logs Recovered 2 | . . 2 Drone Launches . | . . . Drone Recoveries . | . . . Exploration | -11 -10 -10 ------------- Run | Yrd Mat Min Turns Passed 789 | 111 471 207 Spaces Moved 669 | 64 235 370 Core 24 | 13 4 7 Treads 224 | 51 173 . Legs 58 | . 58 . Wheels . | . . . Hover . | . . . Flight 363 | . . 363 Fastest Speed 37 | 50 160 37 Average Speed 95 | 140 169 40 Slowest Speed 300 | 160 300 300 Overloaded Moves . | . . . Propulsion Burnouts . | . . . Robots Hopped . | . . . Cave-ins Triggered . | . . . Exploration Rate (%) 38 | 5 35 75 Regions Visited 2 Branch Regions 1 Pre-discovered Areas 1 | . . 1 Known Exits Taken . | . . . Unknown Exits Taken 2 | 1 1 . Scrap Searched 1 | . . 1 Spaces Dug . | . . . Terrain Destroyed 82 | . 76 6 Melee . | . . . Projectile . | . . . AOE 82 | . 76 6 Terrain Rammed . | . . . Walls Destroyed . | . . . Machines Disabled . | . . . Actions | -11 -10 -10 --------- Run | Yrd Mat Min Total 779 | 85 278 416 Wait 16 | 7 7 2 Move 667 | 63 234 370 Hop . | . . . Pick Up 29 | 8 12 9 Fast Attach . | . . . Attach 21 | 6 7 8 Detach . | . . . Swap 9 | 1 3 5 Drop 9 | . . 9 Fire 28 | . 15 13 Melee . | . . . Ram . | . . . Kick . | . . . Crush . | . . . Escape Stasis . | . . . Rewire . | . . . Trap . | . . . Miscellaneous . | . . . Route ------- -11/Scrapyard -10/Materials (discovered 2 exits: [*Mat] / [*Min]) -10/Mines History --------- Turn | Location | Event 67 | -11/Scrapyard | Discovered new exit (range 15) 112 | -11/Scrapyard | Entered Materials 301 | -10/Materials | Build established: Mutant 304 | -10/Materials | Discovered new exit (range 14) 494 | -10/Materials | Lost 3 parts (2n1w) 498 | -10/Materials | Discovered new exit (range 14) 583 | -10/Materials | Entered Mines 621 | -10/Mines | Met a Derelict bent on vengeance 639 | -10/Mines | Learned 4 Materials zone layouts 773 | -10/Mines | Assembled infested the area 778 | -10/Mines | Core integrity fell below 50% 784 | -10/Mines | Core integrity fell below 20% 790 | -10/Mines | Destroyed by D-53 Grenadier with Mini Grenade Launcher Last Messages --------------- Flight Unit destroyed. [Achievement: Let's See Who's Tougher] The achievement interface (ESC then open Records) offers an effective way to explore all of your earned achievements as well as seek out new goals for future runs. as-30680 destroyed. as-48489 destroyed. as-56442 destroyed. Grenade Launcher destroyed. as-99763 destroyed. Lgt. Armor Plating destroyed. Lgt. Ion Engine destroyed. Lgt. Assault Rifle destroyed. System corrupted by crushing effect (+1). System corrupted by crushing effect (+5). Knocked back. Flight Unit destroyed. The unstable cave ceiling collapses. C-30 ARC bursts open, deploying its payload. D-53 Grenadier unfolds itself. Map ----- +----------------------------------------------------+ | #????## ##???????????????????????????????????? | | ##??## #???????????????????????????????????? | | #??# #???????????????????????????????????? | | #### #???????????????????????????????????? | | ## #???????????????????????????????????? | | ##?????#???????##???????????????????? | | ##????? ????## #???????????????????? | | ##???? ##??# ???????????????????? | | ##???? ?## ????????#??????????? | | #????# ##$ ???#??? #??????????? | | #????# #?? #?? #??????????? | | ##????# ### ## #??????????? | | #?????# a ????????????? | | # ###???# ?????????????? | | # #?# ???????????????? | | # ## #### #?# % #????????????????? | | # ##?# #???????# %a% #?????????????????? | | ##??? #??????# % #?????????????????? | | ##???? #?????# a ##?????????????????? | | #####????? #?????## ##??????????????????? | | ??????????? ##?????## a #???????????????????? | | ???????????####?????## #???????????????????? | | #???????????????????# a #???????????????????? | | #???????????????????# # #???????????????????? | | #???????????????????####d #???????????????????? | | #???????????????#??#####%@#???????????????????? | | ?????????????#### ## d #???????????????????? | | ?????????????# #???????????????????? | | ?????????????# ##### #####???????????????????? | | ???????????????????#t #???????????????????????? | | ???????????????????# #???????????????????????? | | ???????????????????# #???????????????????????? | | ???????????????????# #???????????????????????? | | ???????????????????# #???????????????????????? | | ?????????????#####?# #???????????????????????? | | ????????????## ### ##??????????????????????? | | ????????????# ## ##?????????????????????? | | ??????####### ##????????????????????? | | ??????# ##???????????????????? | | ?????# #???????????????????? | | ????# ##### #???????????????????? | | #???# #???## #??????????????????? | | #### ##???### ???????????????? | | ##????## #????????????? | | ###???## #????????????? | | ##???#### ###????????????? | | ######?# ##??????????????? | | #?# ##???????????????? | | #?? ##????????????????? | | ## #?????????????????? | +----------------------------------------------------+ Best States ------------- Heat Dissipation 25 Energy Generation 10 Energy Capacity 250 Matter Stores 300 Matter Capacity 300 Sight Range 16 Terrain Scan Density 10 Armor Coverage 150 Evasion (%) 62 Recoil Reduction 2 Item Schematics ----------------- None Robot Schematics ------------------ None Fabricated ------------ Nothing Alien Tech Used ----------------- None Achievements -------------- Let's See Who's Tougher Challenges ------------ None Game ------ Seed RagnarokAntigravWings Manual? 0 Play Time 00:17:44 Cumulative 1.4 hours Start 2024.05.14 @ 21:18:11 End 2024.05.14 @ 23:34:44 Sessions 2 Manual Loads 0 Difficulty Rogue Special Mode None Game No. 5 Rogue 5 Adventurer 0 Explorer 0 Win Type - Total 0 Types 0/0/0/0/0/0/0/0/0 Lore% 1 Gallery% 3 Achievement% 3 Wizard Run 0 Options --------- Layout 0 ASCII 0 Keyboard 0 Movement Numpad Keybinds 0 Fullscreen 1 Font 24/Smallcaps Map View 76x50 Zoom Use 0% Tactical HUD 0 Map Filters NONE Filters NONE Steam 1 RUN: acdd2935-bd71-4e4e-9e28-3bf2c3cece87